Cogmind - Beta 10.1 @@@ ROGUE MODE // 2020.10.09 @ 20:16:10 Player: TheGreatBorealis Result: Destroyed by S-10 Pest with Light Assault Rifle Performance ------------- Evolutions (2) 1000 Regions Visited (5) 1000 Robots Destroyed (42) 210 Value Destroyed (1317) 1317 Prototype IDs (5) 100 Alien Tech Used (0) 0 Bonus (0) 0 TOTAL SCORE: 3627 Bonus ------- None Cogmind --------- Core Integrity 0/550 Matter 300/300 Energy 97/100 System Corruption 0% Temperature Cool (0) Movement Core (150) Ox2 Location -8/Materials Parts ------- > --- POWER (1) -------- (None) > --- PROPULSION (4) --- (None) > --- UTILITY (3) ------ Actuator Array Weapon Shielding > --- WEAPON (3) ------- Katana > --- INVENTORY (4) ---- Flight Unit Electrolaser Plasma Cutter Peak State ------------ > --- POWER ------------ Improved Ion Engine > --- PROPULSION ------- Light Treads Light Treads Improved Treads Hover Unit > --- UTILITY ---------- Small Storage Unit Actuator Array Light Armor Plating > --- WEAPON ----------- Katana Katana Katana > --- INVENTORY -------- Ion Engine Actuator Array Weapon Shielding Grenade Launcher Plasma Cutter Katana [Rating: 22] Favorites ----------- Power Ion Engine Engine Ion Engine Propulsion Hover Unit Treads Light Treads Leg Improved Aluminum Leg Hover Unit Hover Unit Flight Unit Flight Unit Utility Small Storage Unit Device Actuator Array Storage Small Storage Unit Protection Light Armor Plating Weapon Katana Ballistic Gun Assault Rifle Launcher Grenade Launcher Slashing Weapon Katana Build | -11 -10 -10 -9 -9 -8 ------- Run | Scr Mat Min Mat Sto Mat Slots Evolved 4 | . . . 2 . 2 Power . | . . . . . . Propulsion 2 | . . . 2 . . Utility 1 | . . . . . 1 Weapon 1 | . . . . . 1 Parts Attached 41 | . 6 1 3 13 18 Power 8 | . 1 . 1 3 3 Engine 8 | . 1 . 1 3 3 Core . | . . . . . . Reactor . | . . . . . . Propulsion 16 | . 4 . 2 4 6 Treads 3 | . . . . 3 . Leg 3 | . 2 . . . 1 Wheel . | . . . . . . Hover 7 | . 2 . 2 1 2 Flight 3 | . . . . . 3 Utility 6 | . 1 1 . 1 3 Device 4 | . 1 1 . . 2 Storage . | . . . . . . Processor . | . . . . . . Hackware . | . . . . . . Protection 2 | . . . . 1 1 Artifact . | . . . . . . Weapon 11 | . . . . 5 6 Energy Gun . | . . . . . . Energy Cannon . | . . . . . . Ballistic Gun 4 | . . . . 4 . Ballistic Cannon . | . . . . . . Launcher 2 | . . . . 1 1 Special Weapon . | . . . . . . Impact Weapon . | . . . . . . Slashing Weapon 5 | . . . . . 5 Piercing Weapon . | . . . . . . Special Melee Weapon . | . . . . . . Unidentified Prototypes 1 | . . 1 . . . Parts Lost 27 | . . . . 6 21 Power 5 | . . . . 1 4 Propulsion 14 | . . . . 4 10 Utility 4 | . . . . 1 3 Weapon 4 | . . . . . 4 Highest Loss Streak 6 | . . . . 2 6 Average Slot Usage (%) 86 | . 89 100 100 86 78 Engine 10 | . 14 14 11 10 7 Treads 6 | . . . . 7 10 Leg 5 | . 25 . . . 2 Hover 15 | . 1 28 44 24 5 Device 6 | . 4 14 11 4 8 Storage 11 | . 14 14 11 11 8 Protection 4 | . . . . 6 8 Ballistic Gun 17 | . 28 28 22 21 . Slashing Weapon 6 | . . . . . 23 Naked Turns . | . . . . . . Heaviest Build 25 | 12 13 11 13 19 25 Greatest Support 63 | 20 26 12 24 63 63 Greatest Overweight (x) 7 | . 4 . 1 2 7 Average Overweight (x) . | . . . . . . Largest Inventory Capacity 6 | . 6 6 6 6 6 Average Capacity 5 | . 6 6 6 6 5 Most Carried 6 | . 6 6 5 6 6 Average Carried 5 | . 5 6 4 5 4 Final Capacity 6 | 6 6 6 6 6 4 Final Carried 6 | 6 6 6 5 6 3 Class Distribution -------------------- 80% | Mutant 19% | Scavenger-Mutant Dominant Class ---------------- Mutant | -10/Materials Mutant | -10/Mines Mutant | -9/Materials Mutant | -9/Storage Mutant | -8/Materials Resources | -11 -10 -10 -9 -9 -8 ----------- Run | Scr Mat Min Mat Sto Mat Matter Collected 926 | 200 108 35 . 308 275 Remotely . | . . . . . . Salvage Created 1502 | . 192 . . 560 750 Parts 72 | . 7 . . 33 32 Haulers Intercepted 1 | . . . . 1 . Recyclers Shooed . | . . . . . . Parts Field Recycled . | . . . . . . Retrieved Matter . | . . . . . . Parts Self-Destructed . | . . . . . . Prevented . | . . . . . . Kills | -11 -10 -10 -9 -9 -8 ------- Run | Scr Mat Min Mat Sto Mat Combat Hostiles Destroyed 36 | . 4 . . 9 23 Melee 21 | . . . . . 21 Guns 12 | . 4 . . 8 . AOE 3 | . . . . 1 2 Classes Destroyed 7 | . 2 . . 3 2 Builder 1 | . . . . . 1 Hauler 1 | . . . . 1 . Recycler 1 | . . . . 1 . Watcher 3 | . 1 . . 1 1 Swarmer 11 | . . . . . 11 Grunt 20 | . 4 . . 6 10 Sentry 5 | . . . . 3 2 Best Kill Streak 6 | . 3 . . 6 6 Combat Bots Only 6 | . 2 . . 3 6 Max Kills in Single Turn 2 | . 1 . . 2 2 Gunslinging . | . . . . . . Exploded 2 | . . . . 1 2 Melee 1 | . . . . . 1 Uniques/NPCs Destroyed . | . . . . . . Combat | -11 -10 -10 -9 -9 -8 -------- Run | Scr Mat Min Mat Sto Mat Damage Taken 2855 | . 257 51 . 611 1936 Core 779 | . 64 11 . 150 554 Absorbed by Shields . | . . . . . . Core Remaining (%) 77 | 100 . 70 . 62 . Volleys Fired 70 | . 23 . . 43 4 Largest 2 | . 2 . . 2 1 Hottest 53 | . 40 . . 53 30 Shots Fired 136 | . 46 . . 86 4 Gun 128 | . 46 . . 82 . Cannon . | . . . . . . Launcher 8 | . . . . 4 4 Special . | . . . . . . Kinetic 128 | . 46 . . 82 . Thermal . | . . . . . . Explosive 8 | . . . . 4 4 Electromagnetic . | . . . . . . Robot Hit Streak 10 | . 6 . . 10 7 Robot Miss Streak 4 | . 2 . . 4 1 Penetration Max . | . . . . . . Secondary Targets 2 | . 1 . . 1 . Max Gunslinging Chain 1 | . 1 . . 1 . Shots Hit Robots 135 | . 34 . . 38 63 Core Hits 66 | . 12 . . 25 29 Critical Hits 2 | . 2 . . . . Critical Kills . | . . . . . . Critical Parts Destroyed 2 | . 2 . . . . Melee Attacks 95 | . . . . . 95 Impact . | . . . . . . Slashing 95 | . . . . . 95 Piercing . | . . . . . . Sneak Attacks . | . . . . . . Combat Hostiles . | . . . . . . Follow-up Attacks 23 | . . . . . 23 Damage Inflicted 3304 | . 391 . . 661 2252 Guns 868 | . 391 . . 477 . Cannons . | . . . . . . Explosions 546 | . . . . 184 362 Melee 1890 | . . . . . 1890 Ramming . | . . . . . . Kinetic 868 | . 391 . . 477 . Thermal . | . . . . . . Explosive 546 | . . . . 184 362 Electromagnetic . | . . . . . . Impact . | . . . . . . Slashing 1890 | . . . . . 1890 Piercing . | . . . . . . Highest Corruption . | . . . . . . Average Corruption . | . . . . . . Corruption Purged . | . . . . . . Overload Shots . | . . . . . . Overflow Damage 120 | . . . . 8 112 Projectiles . | . . . . . . Explosions 13 | . . . . 8 5 Melee 107 | . . . . . 107 Knockbacks . | . . . . . . Impact . | . . . . . . Kinetic . | . . . . . . Secondary . | . . . . . . Self-Inflicted Damage 235 | . 36 . . 79 120 Shots 8 | . 1 . . 3 4 Rammed . | . . . . . . Targets Rammed . | . . . . . . Kicked . | . . . . . . Crushed . | . . . . . . Highest Temperature 48 | . 12 1 . 48 8 Average Temperature 12 | . 7 1 . 16 7 Received Heat Transfer 930 | . 126 30 . 243 531 Siege Activations . | . . . . . . Robots Corrupted . | . . . . . . Combat Hostiles . | . . . . . . Parts Fried . | . . . . . . Impact Corruptions . | . . . . . . Robots Melted . | . . . . . . Combat Hostiles . | . . . . . . Parts Melted . | . . . . . . Heat Transferred . | . . . . . . Parts Sabotaged . | . . . . . . Parts Stolen . | . . . . . . Parts Stripped . | . . . . . . Power Chain Reactions . | . . . . . . Missiles Intercepted . | . . . . . . Alert | -11 -10 -10 -9 -9 -8 ------- Run | Scr Mat Min Mat Sto Mat Peak Influence 346 | . 176 83 31 232 346 Initial 68 | . . 68 31 13 38 Average 108 | . 60 82 31 83 187 Maximum Alert Level 1 | . . . . 1 1 Low Security (%) 80 | . 100 100 100 90 48 Level 1 19 | . . . . 9 51 Level 2 . | . . . . . . Level 3 . | . . . . . . Level 4 . | . . . . . . Level 5 . | . . . . . . High Security . | . . . . . . Max Security . | . . . . . . Squads Dispatched 6 | . . . . . 6 Investigation 1 | . . . . . 1 Extermination . | . . . . . . Reinforcement 2 | . . . . . 2 Assault . | . . . . . . Garrison 3 | . . . . . 3 Intercept . | . . . . . . Construction Impeded 1 | . . . . . 1 Haulers Reinforced . | . . . . . . Stealth | -11 -10 -10 -9 -9 -8 --------- Run | Scr Mat Min Mat Sto Mat Distress Signals 6 | . 1 . . 1 4 Communications Jammed . | . . . . . . Distress Signals . | . . . . . . Times Spotted 68 | . 9 2 . 15 42 Peak Tracking Total 9 | . 3 2 . 4 9 Tactical Retreats 9 | . . 1 . . 8 Traps | -11 -10 -10 -9 -9 -8 ------- Run | Scr Mat Min Mat Sto Mat Traps Triggered 2 | . . . . 1 1 Indirectly . | . . . . . . Trap Hack Attempts . | . . . . . . Triggered . | . . . . . . Disarmed . | . . . . . . Reprogrammed . | . . . . . . Reused . | . . . . . . Traps Extracted . | . . . . . . Installed . | . . . . . . Triggered . | . . . . . . Machines | -11 -10 -10 -9 -9 -8 ---------- Run | Scr Mat Min Mat Sto Mat Machines Disabled 5 | . 2 . . 2 1 Max in Single Turn 2 | . 2 . . 1 1 Machines Sabotaged . | . . . . . . Garrisons Compromised . | . . . . . . Overloaded Fab Kills . | . . . . . . Fab Network Shutdowns . | . . . . . . Hacking | -11 -10 -10 -9 -9 -8 --------- Run | Scr Mat Min Mat Sto Mat Machines Accessed 12 | . 5 . 2 5 . Terminals 9 | . 4 . 2 3 . Fabricators . | . . . . . . Repair Stations . | . . . . . . Recycling Units 2 | . 1 . . 1 . Scanalyzers . | . . . . . . Garrison Access 1 | . . . . 1 . Total Hacks 30 | . 13 . 6 11 . Successful 10 | . 5 . 1 4 . Failed 20 | . 8 . 5 7 . Catastrophic 2 | . . . 1 1 . Database Lockouts . | . . . . . . Manual 12 | . 5 . 3 4 . Terminals 25 | . 11 . 6 8 . Fabricators . | . . . . . . Repair Stations . | . . . . . . Recycling Units 3 | . 2 . . 1 . Scanalyzers . | . . . . . . Garrison Access 2 | . . . . 2 . Terminal Hacks 8 | . 5 . 1 2 . Robot Schematic 1 | . . . . 1 . Prototype ID Bank 2 | . 2 . . . . Branch Access Points 1 | . 1 . . . . Terminal Index 1 | . 1 . . . . Alert Level 1 | . . . 1 . . Recall Investigation 1 | . 1 . . . . Registered Components 1 | . . . . 1 . Fabricator Hacks . | . . . . . . Repair Station Hacks . | . . . . . . Recycling Unit Hacks . | . . . . . . Scanalyzer . | . . . . . . Garrison Access Hacks . | . . . . . . Unauthorized Hacks 2 | . . . . 2 . Terminals 1 | . . . . 1 . Assimilate 1 | . . . . 1 . Fabricators . | . . . . . . Repair Stations . | . . . . . . Recycling Units 1 | . . . . 1 . Reject 1 | . . . . 1 . Scanalyzers . | . . . . . . Garrison Access . | . . . . . . Data Cores Recovered . | . . . . . . Used . | . . . . . . Hacking Detections 9 | . 3 . 2 4 . Full Trace Events 1 | . 1 . . . . Feedback Events . | . . . . . . Feedback Blocked . | . . . . . . Robot Schematics Acquired 1 | . . . . 1 . Robots Built . | . . . . . . Matter . | . . . . . . Time . | . . . . . . Total Robot Build Rating . | . . . . . . Part Schematics Acquired . | . . . . . . Parts Built . | . . . . . . Matter . | . . . . . . Time . | . . . . . . Total Part Build Rating . | . . . . . . Parts Repaired . | . . . . . . Time . | . . . . . . Parts Recycled . | . . . . . . Recycled Matter . | . . . . . . Retrieved Matter . | . . . . . . Retrieved Components . | . . . . . . Parts Scanalyzed . | . . . . . . Part Schematics Acquired . | . . . . . . Parts Damaged . | . . . . . . Bothacking | -11 -10 -10 -9 -9 -8 ------------ Run | Scr Mat Min Mat Sto Mat Used RIF Installer . | . . . . . . Robots Hacked . | . . . . . . Non-combat . | . . . . . . Combat . | . . . . . . Robot Hacks Applied . | . . . . . . Relay Couplers Released . | . . . . . . Robots Rewired . | . . . . . . Allies Hacked . | . . . . . . Hacks Repelled . | . . . . . . Allies | -11 -10 -10 -9 -9 -8 -------- Run | Scr Mat Min Mat Sto Mat Total Allies 1 | . . . . 1 . Largest Group 1 | . . . . 1 . Highest-Rated Group 10 | . . . . 10 . Highest-Rated Ally 10 | . . . . 10 . Total Orders . | . . . . . . Ally Attacks . | . . . . . . Total Damage . | . . . . . . Kills . | . . . . . . Allies Corrupted . | . . . . . . Allies Melted . | . . . . . . Intel | -11 -10 -10 -9 -9 -8 ------- Run | Scr Mat Min Mat Sto Mat Robot Analysis Total . | . . . . . . Derelict Logs Recovered . | . . . . . . Drone Launches . | . . . . . . Drone Recoveries . | . . . . . . Exploration | -11 -10 -10 -9 -9 -8 ------------- Run | Scr Mat Min Mat Sto Mat Turns Passed 1951 | . 379 188 76 716 592 Spaces Moved 1332 | 1 227 326 64 502 212 Core 22 | . 1 . . . 21 Treads 217 | . . . . 127 90 Legs 272 | 1 203 . . . 68 Wheels . | . . . . . . Hover 818 | . 23 326 64 375 30 Flight 3 | . . . . . 3 Fastest Speed 48 | 120 56 56 48 52 56 Average Speed 102 | 120 115 56 112 103 157 Slowest Speed 440 | 120 250 56 116 200 440 Overloaded Moves . | . . . . . . Propulsion Burnouts . | . . . . . . Robots Hopped . | . . . . . . Cave-ins Triggered . | . . . . . . Exploration Rate (%) 32 | 2 37 52 10 65 28 Regions Visited 5 Branch Regions 2 Pre-discovered Areas . | . . . . . . Known Exits Taken 1 | . 1 . . . . Unknown Exits Taken 4 | 1 . 1 1 1 . Scrap Searched 2 | . . 2 . . . Spaces Dug 6 | . . . . . 6 Terrain Destroyed 49 | . . . . 25 24 Melee 6 | . . . . . 6 Projectile . | . . . . . . AOE 43 | . . . . 25 18 Terrain Rammed . | . . . . . . Walls Destroyed . | . . . . . . Machines Disabled . | . . . . . . Actions | -11 -10 -10 -9 -9 -8 --------- Run | Scr Mat Min Mat Sto Mat Total 1679 | . 306 330 67 612 364 Wait 146 | . 31 3 . 51 61 Move 1327 | . 226 325 63 501 212 Hop . | . . . . . . Pick Up 16 | . 8 . 1 2 5 Fast Attach 19 | . 3 1 . 4 11 Attach 10 | . . . 2 2 6 Detach . | . . . . . . Swap 12 | . 3 . 1 7 1 Drop 19 | . 12 1 . 2 4 Fire 70 | . 23 . . 43 4 Melee 60 | . . . . . 60 Ram . | . . . . . . Kick . | . . . . . . Crush . | . . . . . . Escape Stasis . | . . . . . . Rewire . | . . . . . . Trap . | . . . . . . Miscellaneous . | . . . . . . Route ------- -11/Scrapyard -10/Materials -10/Mines -9/Materials -9/Storage (discovered 2 exits: [*Mat] / [*Rec]) -8/Materials History --------- Turn | Location | Event 1 | -11/Scrapyard | Discovered new exit (range 0) 1 | -11/Scrapyard | Entered Materials 117 | -10/Materials | Identified exit to Mines 300 | -10/Materials | Build established: Mutant 380 | -10/Materials | Entered Mines 384 | -10/Mines | Met a Derelict bent on vengeance 539 | -10/Mines | Found a damaged Exp. Sensor Array with a note attached 540 | -10/Mines | Found Prototype Device 540 | -10/Mines | Identified Exp. Sensor Array 564 | -10/Mines | Discovered new exit (range 7) 568 | -10/Mines | Entered Materials 568 | -9/Materials | Evolved 2 slots: Propulsion x2 629 | -9/Materials | Discovered new exit (range 14) 644 | -9/Materials | Entered Storage 1169 | -9/Storage | Used back door to open Recycling access 1169 | -9/Storage | Discovered new exit (range 5) 1354 | -9/Storage | Discovered new exit (range 5) 1360 | -9/Storage | Entered Materials 1360 | -8/Materials | Evolved 2 slots: Utility x1, Weapon x1 1552 | -8/Materials | Build established: Scavenger-Mutant 1607 | -8/Materials | Garrison activated, responded to threat 1644 | -8/Materials | Lost 6 parts (1p4n1u) 1688 | -8/Materials | Core integrity fell below 50% 1722 | -8/Materials | Lost 5 parts (1p1n1u2w) 1815 | -8/Materials | Core integrity fell below 20% 1934 | -8/Materials | Lost 5 parts (2n1u2w) 1952 | -8/Materials | Destroyed by S-10 Pest with Light Assault Rifle Last Messages --------------- 01896_ K-01 Serf cleans the Pressure Siphon. 01896_ Katana destroyed. 01896_ K-01 Serf cleans the Atomic Centrifuge. 01898_ K-01 Serf destroyed. 01899_ K-01 Serf cleans the Atomic Centrifuge. 01900_ K-01 Serf collects debris. 01902_ Acquired Airjet. 01902_ K-01 Serf collects debris. 01903_ Sml. Storage Unit destroyed. 01903_ K-01 Serf cleans the Atomic Centrifuge. 01905_ K-01 Serf collects debris. 01911_ K-01 Serf cleans the Pressure Siphon. 01931_ Destroyed Flight Unit. 01938_ Airjet destroyed. 01941_ S-10 Pest destroyed. 01945_ Y-45 Defender destroyed. 01946_ Lgt. Ion Engine destroyed. 01948_ Airjet destroyed. 01949_ Slug penetrates Wall. 01949_ Flight Unit destroyed. Map ----- +----------------------------------------------------+ | #= #???""" ????????????????????? | | """ """ ######## "G ""?????????????????????? | | """ """ %= # """ """ ???????????????????? | | ??" """ + """ ???????????????????? | | ? # #??????????????????? | | """ # #??????????????????? | | ?######### """ #?! = #??????????????????? | | ?????????# """ #?#### ########??????????????? | | ?????????# ! """* ######### #??????????????? | | ?????????# !% #??????????????? | | ?????????# ! #??????????????? | | ?????????# #??????????????? | | ?????????# ############## #??????????????? | | ?????????#######????????????## ##??????????????? | | ?????????????????????????????# #???????????????? | | ?????????????????????????????# #???????????????? | | ?????????????????????????????# #???????????????? | | ?????????????????????????????# #???????????????? | | ?????????????????????????????# #???????????????? | | ?????????????! #########+##### #???????????????? | | ????????????!! #???????????????? | | ????????????!! #???????????????? | | ????????????!! %[* #???????????????? | | ???????????????####+######+### #???????????????? | | ??????????????????????# s % # #???????????????? | | ????????????????#] + T@ # #???????????????? | | ????????????????# # s # #???????????????? | | ????????????????# ???#= # #???????????????? | | ??????????????????????# # #???????????????? | | ??????????????????????# # #???????????????? | | ??????????????????????##+##### #???????????????? | | ???????????????????????# ????? #???????????????? | | ???????????????????????# ????? #???????????????? | | ???????????????????????# ????? #???????????????? | | ??????????????????????? ????? ???????????????? | | ??????????????????????? ?????????????????????????? | | ??????????????????????? ?????????????????????????? | | ??????????????????????? ?????????????????????????? | | ?????????????????????????????????????????????????? | | ?????????????????????????????????????????????????? | | ?????????????????????????????????????????????????? | | ?????????????????????????????????????????????????? | | ?????????????????????????????????????????????????? | | ?????????????????????????????????????????????????? | | ?????????????????????????????????????????????????? | | ?????????????????????????????????????????????????? | | ?????????????????????????????????????????????????? | | ?????????????????????????????????????????????????? | | ?????????????????????????????????????????????????? | | ?????????????????????????????????????????????????? | +----------------------------------------------------+ Best States ------------- Heat Dissipation 31 Energy Generation 12 Energy Capacity 265 Matter Stores 300 Matter Capacity 300 Sight Range 16 Robot Scan Range 30 Terrain Scan Density 10 Armor Coverage 150 Weapon Shielding 33 Evasion (%) 54 Recoil Reduction 3 Item Schematics ----------------- None Robot Schematics ------------------ Y-45 Defender | -9/Storage | Hacked Fabricated ------------ Nothing Alien Tech Used ----------------- None Achievements -------------- None Challenges ------------ None Game ------ Seed HellfireMissileEngine Manual? 0 Play Time 00:23:46 Cumulative 59.5 hours Start 2020.10.09 @ 19:56:08 End 2020.10.09 @ 20:16:10 Sessions 1 Manual Loads 0 Difficulty Rogue Special Mode None Game No. 110 Rogue 110 Adventurer 0 Explorer 0 Win Type - Total 0 Types 0/0/0/0/0/0/0/0/0 Lore% 44 Gallery% 49 Achievement% 38 Wizard Run 0 Options --------- ASCII 0 Keyboard 1 Movement Numpad Keybinds 0 Fullscreen 2 Font 18/Terminus Map View 76x50 Tactical HUD 1 Map Filters NONE Filters NONE Steam 1 RUN: f07a77be-6f12-48d5-9c9f-942574ddacc5